fUSD/lending_fUSD_20240924
["ID","MTS","AMOUNT","RATE_DAILY","PERIOD"]
[339078888,1727211032661,-500.0,0.00012889,2]
[339078889,1727211032672,-500.0,0.00012889,2]
[339078890,1727211032682,-500.0,0.00012889,2]
[339078891,1727211032692,-500.0,0.00012889,2]
[339078892,1727211032704,-500.0,0.00012889,2]
[339078893,1727211032714,-380.0,0.00012889,2]
[339078894,1727211032724,-341.47763238,0.00012889,2]
[339078895,1727211032734,-500.0,0.00012889,2]
[339078896,1727211032744,-500.0,0.00012889,2]
[339078897,1727211032755,-500.0,0.00012889,2]
[339078898,1727211032765,-500.0,0.00012889,2]
[339078899,1727211032777,-500.0,0.00012889,2]
[339078900,1727211032787,-500.0,0.00012889,2]
[339078901,1727211032797,-500.0,0.00012889,2]
[339078902,1727211032807,-500.0,0.00012889,2]
[339078903,1727211032817,-500.0,0.00012889,2]
[339078904,1727211032828,-500.0,0.00012889,2]
[339078905,1727211032839,-500.0,0.00012889,2]
[339078906,1727211032849,-500.0,0.00012889,2]
[339078907,1727211032859,-500.0,0.00012889,2]
[339078908,1727211032869,-151.90170811,0.00012889,2]
[339078909,1727211032879,-500.0,0.00012889,2]
[339078910,1727211032889,-500.0,0.00012889,2]
[339078911,1727211032900,-500.0,0.00012889,2]
[339078912,1727211032910,-500.0,0.00012889,2]
[339078913,1727211032920,-2000.0,0.00012889,2]
[339078914,1727211032930,-500.0,0.00012889,2]
[339078915,1727211032942,-500.0,0.00012889,2]
[339078916,1727211032952,-500.0,0.00012889,2]
[339078917,1727211032963,-439.16122913,0.00012889,2]
[339078918,1727211032974,-152.85,0.0001289,2]
[339078919,1727211032984,-152.85,0.0001289,2]
[339078920,1727211032994,-265888.41834723,0.0001289,2]
[339078921,1727211033484,-48663.18146727,0.0001289,2]
[339078922,1727211033496,-3731.56233648,0.0001289,2]
[339078923,1727211033523,-637.70410917,0.0001289,2]
[339078924,1727211033534,-120437.91107043,0.0001289,2]
[339078925,1727211033554,-5184.70174174,0.0001289,2]
[339078926,1727211033584,-1299.333284,0.0001289,2]
[339078927,1727211033596,-3699.89675971,0.0001289,2]
[339078928,1727211033607,-4675.59495334,0.0001289,2]
[339078929,1727211033619,-4522.06617273,0.0001289,2]
[339078930,1727211033631,-8395.70233375,0.0001289,2]
[339078931,1727211033641,-966.21666469,0.0001289,2]
[339078932,1727211033653,-741.8811006,0.0001289,2]
[339078933,1727211033664,-5509.13788547,0.0001289,2]
[339078934,1727211033679,-10778.66962938,0.0001289,2]
[339078935,1727211033692,-784.34351086,0.0001289,2]
[339078936,1727211033713,-844.4503927,0.0001289,2]
[339078937,1727211033725,-1367.57781629,0.0001289,2]
[339078938,1727211033737,-5438.28687281,0.0001289,2]
[339078939,1727211033748,-6959.30203298,0.0001289,2]
[339078940,1727211033760,-134649.75188828,0.0001289,2]
[339078941,1727211033769,-186.67744967,0.0001289,2]
[339078942,1727211033781,-186.67744967,0.0001289,2]
[339078943,1727211033792,-152.85,0.0001289,2]
[339078944,1727211033802,-152.85,0.0001289,2]
[339078945,1727211033811,-152.85,0.0001289,2]
[339078946,1727211033821,-152.85,0.0001289,2]
[339078947,1727211033831,-152.85,0.0001289,2]
[339078948,1727211033840,-152.85,0.0001289,2]
[339078949,1727211033851,-152.85,0.0001289,2]
[339078950,1727211033861,-152.85,0.0001289,2]
[339078951,1727211033871,-152.85,0.0001289,2]
[339078952,1727211033880,-152.85,0.0001289,2]
[339078953,1727211033890,-152.85,0.0001289,2]
[339078954,1727211033899,-152.85,0.0001289,2]
[339078955,1727211033910,-152.85,0.0001289,2]
[339078956,1727211033920,-152.85,0.0001289,2]
[339078957,1727211033929,-152.85,0.0001289,2]
[339078958,1727211033941,-152.85,0.0001289,2]
[339078959,1727211033951,-152.85,0.0001289,2]
[339078960,1727211033961,-152.85,0.0001289,2]
[339078961,1727211033970,-152.85,0.0001289,2]
[339078962,1727211033979,-152.85,0.0001289,2]
[339078963,1727211033989,-152.85,0.0001289,2]
[339078964,1727211033999,-152.85,0.0001289,2]
[339078965,1727211034008,-152.85,0.0001289,2]
[339078966,1727211034018,-14885.9866848,0.00012897,2]
[339078967,1727211034027,-1000.0,0.00012899,2]
[339078968,1727211034037,-1000.0,0.00012899,2]
[339078969,1727211034047,-1000.0,0.00012899,2]
[339078970,1727211034056,-1000.0,0.00012899,2]
[339078971,1727211034066,-1000.0,0.00012899,2]
[339078972,1727211034075,-191.1269294,0.000129,2]
[339078973,1727211034085,-601.25841335,0.000129,2]
[339078974,1727211034094,-16867.13822961,0.000129,2]
[339078975,1727211034104,-291653.2359624,0.000129,2]
[339078976,1727211034116,-64883.93652028,0.000129,2]
[339078977,1727211034125,-18098.36434972,0.000129,2]
[339078978,1727211034137,-478.31588386,0.000129,2]
[339078989,1727211038160,-287.98514309,0.0001279,2]
[339078990,1727211038171,-288.88932243,0.000129,2]
[339078991,1727211038182,-597.1581044,0.000129,2]
[339078992,1727211038195,-2004.98991,0.000129,2]
[339078993,1727211038206,-16814.71121212,0.000129,2]
[339078994,1727211038219,-468.87,0.000129,2]
[339078995,1727211038231,-345.44,0.000129,2]
[339078996,1727211038248,-1888.84042462,0.000129,2]
[339078997,1727211038259,-1239.22320358,0.000129,2]
[339078998,1727211038271,-421.399227,0.000129,2]
[339078999,1727211038283,-5656.41,0.000129,2]
[339079000,1727211038294,-60473.79505154,0.000129,2]
[339079001,1727211038307,-250.485,0.000129,2]
[339079002,1727211038319,-599.9066196,0.000129,2]
[339079003,1727211038344,-531.06930366,0.000129,2]
[339079004,1727211038356,-918.803945,0.000129,2]
[339079005,1727211038440,-7546.42093955,0.000129,2]
[339079006,1727211038451,-902.63081299,0.000129,2]
[339079007,1727211038463,-1109.987283,0.000129,2]
[339079008,1727211038502,-2000.0,0.000129,2]
[339079009,1727211038513,-1653.30074455,0.000129,2]
[339079010,1727211038525,-615.002,0.000129,2]
[339079011,1727211038539,-1427.2185654,0.000129,2]
[339079012,1727211038551,-6525.06999584,0.000129,2]
[339079014,1727211038564,-11520.88776301,0.000129,2]
[339079151,1727211040009,-1205.42699296,0.000128,2]
[339079153,1727211040019,-178.32300704,0.000129,2]
[339079155,1727211040031,-477.21,0.000129,2]
[339079158,1727211040043,-30993.07578089,0.000129,2]
[339079161,1727211040066,-2015.94855758,0.000129,2]
[339079163,1727211040077,-1631.96991874,0.000129,2]
[339079168,1727211040123,-395.92311807,0.000129,2]
[339079170,1727211040135,-1700.0,0.000129,2]
[339079171,1727211040146,-1094.57625342,0.000129,2]
[339079172,1727211040183,-840.77658634,0.000129,2]
[339079173,1727211040195,-359.18974162,0.000129,2]
[339079174,1727211040206,-641.94345254,0.000129,2]
[339079175,1727211040217,-1714.25660773,0.000129,2]
[339079176,1727211040228,-1007.52312096,0.000129,2]
[339079177,1727211040244,-13145.7941932,0.000129,2]
[339079178,1727211040253,-373266.63493802,0.000129,2]
[339079179,1727211040264,-34577.1301747,0.000129,2]
[339079180,1727211040275,-518.424,0.000129,2]
[339079181,1727211040286,-719.26763437,0.000129,2]
[339079359,1727211043027,-287.98514307,0.00012791,2]
[339079360,1727211043038,-151.31832571,0.000128,2]
[339079361,1727211043083,-42.36940339,0.000128,2]
[339079362,1727211043094,-5157.63059661,0.000129,2]
[339079363,1727211043105,-12722.77961447,0.000129,2]
[339079364,1727211043138,-2498.82070866,0.000129,2]
[339079365,1727211043150,-412548.6292,0.000129,2]
[339079366,1727211043161,-500.28751838,0.000129,2]
[339079367,1727211043195,-1285.92,0.000129,2]
[339079368,1727211043206,-3608.49551145,0.000129,2]
[339079369,1727211043217,-2149.47125223,0.000129,2]
[339079370,1727211043228,-8264.97603201,0.000129,2]
[339079371,1727211043250,-71271.50692517,0.000129,2]
[339079372,1727211043263,-11198.58222077,0.000129,2]
[339079373,1727211043273,-1509.89121034,0.000129,2]
[339079374,1727211043285,-177805.24882099,0.000129,2]
[339079375,1727211043297,-3592.67573094,0.000129,2]
[339079376,1727211043307,-1300.0,0.000129,2]
[339079377,1727211043318,-503.32510315,0.000129,2]
[339079378,1727211043331,-491.88762138,0.000129,2]
[339079379,1727211043342,-795.489987,0.000129,2]
[339079380,1727211043354,-622.9,0.000129,2]
[339079381,1727211043365,-13779.17179148,0.000129,2]
[339079382,1727211043376,-300.0,0.000129,2]
[339079397,1727211046303,-287.98514307,0.00012793,2]
[339079398,1727211046313,-6141.91485693,0.000129,2]
[339079409,1727211489698,156.1,0.00010959,2]
[339079410,1727211498476,382.46,9.936e-05,2]
[339079411,1727211669932,1050.0,0.00011,2]
[339079412,1727212029262,200.0,0.00010959,2]
[339079413,1727212069003,392.3,9.863e-05,2]
[339079414,1727212125303,228.26,0.00010959,2]
[339079433,1727212232322,-250.0,0.00011754,2]
[339079434,1727212232332,-358.5,0.00011755,2]
[339079435,1727212232341,-250.0,0.00011758,2]
[339079436,1727212232351,-198.47,0.00011758,2]
[339079437,1727212232361,-595.25,0.00011758,2]
[339079438,1727212232370,-165.16,0.00011758,2]
[339079439,1727212232379,-250.0,0.00011773,2]
[339079440,1727212232389,-300.0,0.00011777,2]
[339079441,1727212232399,-3436.96552,0.00011778,2]
[339079442,1727212232412,-5890.99048,0.00011778,2]
[339079443,1727212232421,-150.0,0.0001186,2]
[339079444,1727212232431,-657.3,0.00011867,2]
[339079445,1727212232440,-1000.0,0.00011867,2]
[339079446,1727212232450,-150.0,0.00011889,2]
[339079447,1727212232459,-20661.27,0.0001189,2]
[339079448,1727212232469,-409.01,0.0001189,2]
[339079449,1727212232479,-90.71042217,0.0001189,2]
[339079450,1727212232495,-1398.38957783,0.0001189,2]
[339079451,1727212232505,-5041.51042217,0.0001189,2]
[339079452,1727212232517,-1186.623513,0.0001189,2]
[339079459,1727212238387,-1259.43334316,0.0001189,2]
[339079460,1727212238399,-1257.43565756,0.0001189,2]
[339079461,1727212238444,-4181.1963038,0.0001189,2]
[339079462,1727212238503,-400.0,0.0001189,2]
[339079463,1727212238716,-991.02565311,0.0001189,2]
[339079464,1727212238730,-8815.9951072,0.0001189,2]
[339079465,1727212238740,-287.3,0.0001189,2]
[339079466,1727212238750,-499.99,0.0001189,2]
[339079467,1727212238760,-9999.99,0.0001189,2]
[339079468,1727212238771,-1536.96,0.0001189,2]
[339079470,1727212238782,-3869.23,0.0001189,2]
[339079472,1727212238791,-499.99,0.0001189,2]
[339079474,1727212238800,-1074.21,0.0001189,2]
[339079476,1727212238809,-317.81,0.00011951,2]
[339079478,1727212238819,-392.3,0.00012127,2]
[339079480,1727212238829,-8626.69260169,0.00012779,2]
[339079482,1727212238838,-1752.9175,0.0001279,2]
[339079484,1727212238848,-500.0,0.00012797,2]
[339079486,1727212238856,-200.0,0.00012797,2]
[339079488,1727212238866,-1324.674,0.00012799,2]
[339079490,1727212238875,-391.99,0.00012799,2]
[339079492,1727212238886,-193.27,0.00012799,2]
[339079494,1727212238895,-180.45951325,0.000128,2]
[339079496,1727212238904,-1000.0,0.000128,2]
[339079498,1727212238913,-156.2770892,0.000128,2]
[339079500,1727212238922,-305.15633141,0.000128,2]
[339079502,1727212238931,-5383.8135,0.000128,2]
[339079504,1727212238940,-1000.0,0.000128,2]
[339079506,1727212238949,-321.9831508,0.000128,2]
[339079508,1727212238958,-803.6179953,0.000128,2]
[339079510,1727212238967,-193.6877291,0.000128,2]
[339079512,1727212238976,-1637.34362898,0.000128,2]
[339079514,1727212238985,-588.56681748,0.000128,2]
[339079516,1727212238994,-152.82,0.0001289,2]
[339079518,1727212239003,-296.16955207,0.0001289,2]
[339079519,1727212239012,-152.82,0.0001289,2]
[339079522,1727212239023,-152.82,0.0001289,2]
[339079524,1727212239034,-152.82,0.0001289,2]
[339079526,1727212239043,-152.82,0.0001289,2]
[339079528,1727212239053,-152.82,0.0001289,2]
[339079530,1727212239063,-152.82,0.0001289,2]
[339079532,1727212239072,-152.82,0.0001289,2]
[339079534,1727212239083,-152.82,0.0001289,2]
[339079536,1727212239093,-152.82,0.0001289,2]
[339079538,1727212239102,-152.82,0.0001289,2]
[339079540,1727212239111,-152.82,0.0001289,2]
[339079542,1727212239120,-152.82,0.0001289,2]
[339079544,1727212239129,-152.82,0.0001289,2]
[339079546,1727212239138,-152.82,0.0001289,2]
[339079548,1727212239147,-152.82,0.0001289,2]
[339079550,1727212239157,-152.82,0.0001289,2]
[339079552,1727212239166,-152.82,0.0001289,2]
[339079554,1727212239175,-152.82,0.0001289,2]
[339079556,1727212239184,-85381.5614637,0.00012895,2]
[339079558,1727212239193,-5436.2307546,0.00012895,2]
[339079560,1727212239203,-8831.07940203,0.00012897,2]
[339079562,1727212239212,-50128.27,0.00012899,2]
[339079563,1727212239221,-1000.0,0.00012899,2]
[339079565,1727212239231,-1000.0,0.00012899,2]
[339079567,1727212239244,-1000.0,0.00012899,2]
[339079569,1727212239253,-500.0,0.00012899,2]
[339079571,1727212239262,-500.0,0.00012899,2]
[339079573,1727212239271,-500.0,0.00012899,2]
[339079575,1727212239281,-234.2090971,0.00012899,2]
[339079577,1727212239290,-500.0,0.00012899,2]
[339079579,1727212239299,-1000.0,0.00012899,2]
[339079581,1727212239308,-43347.53820288,0.000129,2]
[339079584,1727212239323,-829.10102755,0.000129,2]
[339079595,1727212239458,151.0,0.00011,2]
[339079596,1727212239801,237.0,0.00011,2]
[339079600,1727212240185,-2933.94892873,0.000129,2]
[339079601,1727212240197,-11609.2,0.000129,2]
[339079602,1727212240208,-391.951146,0.000129,2]
[339079603,1727212240219,-1458.91842534,0.000129,2]
[339079604,1727212240232,-629.75189956,0.000129,2]
[339079605,1727212240246,-998.486475,0.000129,2]
[339079606,1727212240258,-397.95,0.000129,2]
[339079607,1727212240269,-2383.28089997,0.000129,2]
[339079608,1727212240279,-91681.41340885,0.000129,2]
[339079609,1727212240348,-4213.03175118,0.000129,2]
[339079610,1727212240359,-34390.09549259,0.000129,2]
[339079611,1727212240372,-33003.91858369,0.000129,2]
[339079612,1727212240382,-31520.3099575,0.000129,2]
[339079613,1727212240393,-27053.90907254,0.000129,2]
[339079614,1727212240405,-969.65529697,0.000129,2]
[339079615,1727212240416,-794.79791123,0.000129,2]
[339079616,1727212240427,-6664.80077973,0.000129,2]
[339079617,1727212240438,-822.41753221,0.000129,2]
[339079618,1727212240450,-2776.31380426,0.000129,2]
[339079619,1727212240461,-265.69357356,0.000129,2]
[339079621,1727212240471,-2110.66568425,0.000129,2]
[339079885,1727212243275,-205.4909444,0.00011655,2]
[339079886,1727212243286,-122.55905545,0.000129,2]
[339079887,1727212243298,-359.73856219,0.000129,2]
[339079888,1727212243310,-1720.3100005,0.000129,2]
[339079889,1727212243323,-5420.415,0.000129,2]
[339079890,1727212243338,-2382.52120733,0.000129,2]
[339079891,1727212243350,-636.49603942,0.000129,2]
[339079892,1727212243393,-7300.0,0.000129,2]
[339079893,1727212243451,-1302.1840501,0.000129,2]
[339079894,1727212243464,-1187189.25511144,0.000129,2]
[339080071,1727212246277,-200.0,0.000119,4]
[339080072,1727212246287,-2941.55007443,0.000129,2]
[339080073,1727212246397,-704.85845544,0.000129,2]
[339080075,1727212605431,380.66,9.885e-05,2]
[339080076,1727212712695,182.41,0.00010959,2]
[339080077,1727212800617,256.41,9.336e-05,2]
[339080078,1727213026669,11511.0,0.000109,3]
[339080079,1727213026915,28293.97777262,0.000106,2]
[339080080,1727213026940,133818.02222738,0.000106,2]
[339080081,1727213027675,-11511.0,0.000112,5]
[339080082,1727213169483,386.46,9.796e-05,2]
[339080083,1727213260346,500.0,8.22e-05,2]
[339080084,1727213261984,500.0,0.0001096,2]
[339080085,1727213298642,500.0,0.00010082,2]
[339080086,1727213326970,631.36,0.00010082,2]
[339080113,1727213431383,-535.19,0.00011463,2]
[339080115,1727213431393,-281.02992645,0.00011463,2]
[339080117,1727213431439,-718.97007355,0.00011463,2]
[339080118,1727213431448,-250.0,0.00011494,2]
[339080119,1727213431457,-300.0,0.00011502,2]
[339080120,1727213431466,-127.53213866,0.00011559,2]
[339080121,1727213431479,-491.12786134,0.00011559,2]
[339080122,1727213431489,-250.0,0.00011612,2]
[339080123,1727213431498,-312.5,0.00011616,2]
[339080124,1727213431507,-151.37213866,0.0001168,2]
[339080125,1727213431519,-98.62786134,0.0001168,2]
[339080126,1727213431528,-199.02,0.00011805,2]
[339080127,1727213431538,-274.11,0.0001189,2]
[339080128,1727213431548,-200.0,0.000119,4]
[339080129,1727213431558,-3612.83213866,0.000119,2]
[339080130,1727213431569,-6387.15786134,0.000119,2]
[339080131,1727213431579,-499.99,0.000119,2]
[339080132,1727213431589,-500.0,0.00012,4]
[339080133,1727213431598,-386.46,0.00012059,2]
[339080134,1727213431608,-700.0,0.000121,4]
[339080135,1727213431618,-632.79587203,0.0001218,2]
[339080136,1727213431630,-966.03305,0.0001218,2]
[339080137,1727213431641,-277.9595,0.0001218,2]
[339080138,1727213431653,-484.32,0.0001218,2]
[339080139,1727213431665,-503.022718,0.0001218,2]
[339080140,1727213431678,-227.24160825,0.0001218,2]
[339080141,1727213431687,-1000.0,0.000122,4]
[339080142,1727213431696,-1200.0,0.000123,4]
[339080143,1727213431706,-200.0,0.000124,4]
[339080144,1727213431715,-200.0,0.000125,4]
[339080145,1727213431724,-200.0,0.000126,4]
[339080146,1727213431736,-1407.02984773,0.00012629,2]
[339080147,1727213431746,-1407.02984772,0.00012648,2]
[339080148,1727213431755,-1407.02984772,0.00012667,2]
[339080149,1727213431765,-150.0,0.0001268,2]
[339080150,1727213431774,-1407.02984772,0.00012686,2]
[339080151,1727213431784,-159.41034035,0.00012694,2]
[339080152,1727213431793,-6272.2,0.000127,2]
[339080153,1727213431803,-200.0,0.000127,4]
[339080154,1727213431813,-1407.02984772,0.00012705,2]
[339080157,1727213431823,-139391.58395684,0.00012706,2]
[339080158,1727213431835,-1097.34227907,0.00012706,2]
[339080159,1727213431847,-2205.33257546,0.00012706,2]
[339080160,1727213431859,-1841.82361466,0.00012706,2]
[339080161,1727213431868,-1407.02984772,0.00012724,2]
[339080162,1727213431878,-159.41034035,0.00012729,2]
[339080163,1727213431890,-1407.02984772,0.00012743,2]
[339080164,1727213431899,-1407.02984772,0.00012762,2]
[339080165,1727213431909,-159.41034035,0.00012765,2]
[339080166,1727213431918,-152.23,0.0001277,2]
[339080167,1727213431929,-152.23,0.0001277,2]
[339080168,1727213431938,-152.23,0.0001277,2]
[339080169,1727213431947,-197.44636803,0.0001277,2]
[339080170,1727213431957,-150.75966,0.00012771,2]
[339080171,1727213431966,-3166.44859586,0.00012777,2]
[339080172,1727213431977,-879.36353194,0.00012777,2]
[339080173,1727213431990,-679.3503,0.00012777,2]
[339080174,1727213432002,-490.46366303,0.00012777,2]
[339080175,1727213432014,-341.27187409,0.00012777,2]
[339080176,1727213432023,-257.43620481,0.00012779,2]
[339080177,1727213432033,-99.18228173,0.00012779,2]
[339080178,1727213432045,-400.81771827,0.00012779,2]
[339080179,1727213432054,-500.0,0.00012779,2]
[339080180,1727213432064,-431.81343982,0.00012779,2]
[339080181,1727213432079,-68.18656018,0.00012779,2]
[339080182,1727213432090,-500.0,0.00012779,2]
[339080183,1727213432099,-204.89492049,0.00012779,2]
[339080184,1727213432108,-767.27540677,0.0001278,2]
[339080185,1727213432117,-7328.55443696,0.0001278,2]
[339080186,1727213432130,-763.75058288,0.0001278,2]
[339080187,1727213432146,-3172.38668386,0.0001278,2]
[339080188,1727213432158,-1786.71591369,0.0001278,2]
[339080189,1727213432170,-450.44936041,0.0001278,2]
[339080190,1727213437464,-321.98315079,0.0001268,2]
[339080191,1727213437474,-650469.01444954,0.0001278,2]
[339080192,1727213437486,-538.27659695,0.0001278,2]
[339080193,1727213437522,-5020.75744016,0.0001278,2]
[339080194,1727213437689,-941.72971761,0.0001278,2]
[339080195,1727213437701,-483.7355491,0.0001278,2]
[339080196,1727213437712,-534.4333347,0.0001278,2]
[339080197,1727213437728,-437.37113765,0.0001278,2]
[339080198,1727213437806,-2074.28288858,0.0001278,2]
[339080205,1727213439409,-4777.47261962,0.0001278,2]
[339080206,1727213439661,-2455.16934674,0.0001278,2]
[339080207,1727213439672,-432.79289485,0.0001278,2]
[339080208,1727213439693,-2074.542965,0.0001278,2]
[339080209,1727213439754,-313.427364,0.0001278,2]
[339080396,1727213442403,-20935.32554142,0.0001278,2]
[339080397,1727213442415,-2248.95674392,0.0001278,2]
[339080398,1727213442427,-614.29174979,0.0001278,2]
[339080399,1727213442517,-510.33427452,0.0001278,2]
[339080400,1727213442529,-1118.97,0.0001278,2]
[339080401,1727213442576,-3972.09929284,0.0001278,2]
[339080402,1727213442587,-1377.53454,0.0001278,2]
[339080403,1727213442634,-12988.4578671,0.0001278,2]
[339080404,1727213442646,-344.59647188,0.0001278,2]
[339080405,1727213442701,-2551.14997692,0.0001278,2]
[339080407,1727213442713,-409.40489135,0.0001278,2]
[339080408,1727213442724,-8823.99346952,0.0001278,2]
[339080409,1727213445395,-1240.6564181,0.0001278,2]
[339080410,1727213445553,-403.53386833,0.0001278,2]
[339080411,1727213445564,-530.6,0.0001278,2]
[339080412,1727213445576,-1321.4022825,0.0001278,2]
[339080413,1727213445587,-1869.3662922,0.0001278,2]
[339080414,1727213445598,-614.85003471,0.0001278,2]
[339080415,1727213445610,-3564.74835214,0.0001278,2]
[339080416,1727213445622,-260.0,0.0001278,2]
[339080417,1727213445634,-1390.08845816,0.0001278,2]
[339080418,1727213445645,-6372.4344052,0.0001278,2]
[339080422,1727213445829,-611.804,0.0001278,2]
[339080423,1727213445853,-13300.00000008,0.0001278,2]
[339080424,1727213472371,1050.0,0.00011,2]
[339080425,1727213481095,500.0,9.796e-05,2]
[339080426,1727213481417,500.0,9.796e-05,2]
[339080427,1727213481774,500.0,9.796e-05,2]
[339080428,1727213482100,500.0,9.796e-05,2]
[339080429,1727213482458,500.0,9.796e-05,2]
[339080430,1727213482805,500.0,9.796e-05,2]
[339080431,1727213483120,500.0,9.796e-05,2]
[339080432,1727213483452,500.0,9.796e-05,2]
[339080433,1727213483786,500.0,9.796e-05,2]
[339080434,1727213484112,500.0,9.796e-05,2]
[339080435,1727213485037,500.0,9.796e-05,2]
[339080436,1727213485962,500.0,9.796e-05,2]
[339080437,1727213486308,500.0,9.796e-05,2]
[339080438,1727213486624,500.0,9.796e-05,2]
[339080439,1727213486953,500.0,9.796e-05,2]
[339080440,1727213487281,500.0,9.796e-05,2]
[339080441,1727213487610,500.0,9.796e-05,2]
[339080442,1727213487972,500.0,9.796e-05,2]
[339080443,1727213488293,500.0,9.796e-05,2]
[339080444,1727213488645,500.0,9.796e-05,2]
[339080445,1727213488967,500.0,9.796e-05,2]
[339080446,1727213489296,500.0,9.796e-05,2]
[339080447,1727213489617,500.0,9.796e-05,2]
[339080448,1727213490117,500.0,9.796e-05,2]
[339080449,1727213490537,500.0,9.796e-05,2]
[339080450,1727213490689,500.0,9.796e-05,2]
[339080451,1727213492523,500.0,9.796e-05,2]
[339080452,1727213492875,500.0,9.796e-05,2]
[339080453,1727213493203,500.0,9.796e-05,2]
[339080454,1727213493517,500.0,9.796e-05,2]
[339080455,1727213493831,500.0,9.796e-05,2]
[339080456,1727213494155,500.0,9.796e-05,2]
[339080457,1727213494470,500.0,9.796e-05,2]
[339080458,1727213494786,500.0,9.796e-05,2]
[339080459,1727213495118,500.0,9.796e-05,2]
[339080460,1727213495767,500.0,9.796e-05,2]
[339080461,1727213496082,500.0,9.796e-05,2]
[339080462,1727213497007,500.0,9.796e-05,2]
[339080463,1727213497943,500.0,9.796e-05,2]
[339080464,1727213498261,500.0,9.796e-05,2]
[339080465,1727213498585,500.0,9.796e-05,2]
[339080466,1727213498898,500.0,9.796e-05,2]
[339080467,1727213499208,500.0,9.796e-05,2]
[339080468,1727213499554,500.0,9.796e-05,2]
[339080469,1727213499871,500.0,9.796e-05,2]
[339080470,1727213500931,500.0,9.796e-05,2]
[339080471,1727213501082,500.0,9.796e-05,2]
[339080472,1727213501389,500.0,9.796e-05,2]
[339080473,1727213501817,500.0,9.796e-05,2]
[339080474,1727213502238,500.0,9.796e-05,2]
[339080475,1727213502586,500.0,9.796e-05,2]
[339080476,1727213502915,500.0,9.796e-05,2]
[339080477,1727213503267,500.0,9.796e-05,2]
[339080478,1727213503595,500.0,9.796e-05,2]
[339080479,1727213504513,500.0,9.796e-05,2]
[339080480,1727213504859,500.0,9.796e-05,2]
[339080481,1727213505185,500.0,9.796e-05,2]
[339080482,1727213505494,500.0,9.796e-05,2]
[339080483,1727213505829,500.0,9.796e-05,2]
[339080484,1727213506163,500.0,9.796e-05,2]
[339080485,1727213506472,500.0,9.796e-05,2]
[339080486,1727213506803,500.0,9.796e-05,2]
[339080487,1727213507109,500.0,9.796e-05,2]
[339080488,1727213508941,500.0,9.796e-05,2]
[339080489,1727213509251,500.0,9.796e-05,2]
[339080490,1727213510160,500.0,9.796e-05,2]
[339080491,1727213510516,500.0,9.796e-05,2]
[339080492,1727213510846,500.0,9.796e-05,2]
[339080493,1727213511336,500.0,9.796e-05,2]
[339080494,1727213511583,500.0,9.796e-05,2]
[339080495,1727213511919,500.0,9.796e-05,2]
[339080496,1727213512244,500.0,9.796e-05,2]
[339080497,1727213512550,500.0,9.796e-05,2]
[339080498,1727213512858,500.0,9.796e-05,2]
[339080499,1727213513283,500.0,9.796e-05,2]
[339080500,1727213513593,500.0,9.796e-05,2]
[339080501,1727213514059,500.0,9.796e-05,2]
[339080502,1727213514369,500.0,9.796e-05,2]
[339080503,1727213514687,500.0,9.796e-05,2]
[339080504,1727213515001,500.0,9.796e-05,2]
[339080505,1727213515314,558.0,9.796e-05,2]
[339080506,1727213525870,200.0,9.796e-05,2]
[339080507,1727213526195,200.0,9.796e-05,2]
[339080508,1727213526660,200.0,9.796e-05,2]
[339080509,1727213526986,200.0,9.796e-05,2]